Department,Entity,Date of Payment,Expense Type,Expense Area,Supplier,Transaction Number,Amount,Description,Supplier Postcode
"Department for Business, Innovation and Skills",UK Shared Business Services Ltd,01/06/2022,Contract Staff,Corporate Commercial,Alexander Mann Solutions Ltd,99416742,"6,303.12",Recruitment Services,EC2N 3AQ
"Department for Business, Innovation and Skills",UK Shared Business Services Ltd,01/06/2022,IT Cloud Services,Production Services,Advanced Network Security Ltd,99738678,"2,016.00",Computer Consumables,RG24 8GU
"Department for Business, Innovation and Skills",UK Shared Business Services Ltd,06/06/2022,Safety Materials & Equipment,Finance Services,Aston Pharma,99023163,60.96,Safety Equipment & Materials,SWAREHOUSEONLY
"Department for Business, Innovation and Skills",UK Shared Business Services Ltd,06/06/2022,Research Consumables,Finance Operations 2,Aston Pharma,99082323,11.11,Lab Consumables,SWAREHOUSEONLY
"Department for Business, Innovation and Skills",UK Shared Business Services Ltd,06/06/2022,Safety Materials & Equipment,Finance Operations 2,Aston Pharma,99082323,11.04,Safety Equipment & Materials,SWAREHOUSEONLY
"Department for Business, Innovation and Skills",UK Shared Business Services Ltd,06/06/2022,Consultancy Services,Production Services,Barcross Ltd,99627853,300,Remote support of IaC tasks. To be invoiced in blocks of 0.5 days,HA2 0HY
"Department for Business, Innovation and Skills",UK Shared Business Services Ltd,06/06/2022,Contract Staff,People,Alexander Mann Solutions Ltd,99732730,"3,078.58",Recruitment Services,EC2N 3AQ
"Department for Business, Innovation and Skills",UK Shared Business Services Ltd,06/06/2022,GPC Clearing - SSC,Balance Sheet,Unspecified,99738883,-25.16,Unspecified,HOME
"Department for Business, Innovation and Skills",UK Shared Business Services Ltd,06/06/2022,GPC Sundry Expenditure,D&I Management,Unspecified,99738883,25.16,GPC_Miscellaneous GPC Expenditure,HOME
"Department for Business, Innovation and Skills",UK Shared Business Services Ltd,06/06/2022,Consultancy Services,Communications,The Digital Accessibility Centre Ltd,99739249,"1,044.00",Consultancy Services,SA10 6FG
"Department for Business, Innovation and Skills",UK Shared Business Services Ltd,06/06/2022,Health & Safety (inc. Medicals & Opticians),Corporate HR,Swindon Occupational Medical Services Ltd,99739534,"1,520.00",Professional Services,GL7 7AL
"Department for Business, Innovation and Skills",UK Shared Business Services Ltd,06/06/2022,Health & Safety (inc. Medicals & Opticians),Corporate HR,Swindon Occupational Medical Services Ltd,99739535,"2,280.00",Professional Services,GL7 7AL
"Department for Business, Innovation and Skills",UK Shared Business Services Ltd,06/06/2022,Health & Safety (inc. Medicals & Opticians),Corporate HR,Swindon Occupational Medical Services Ltd,99739537,"1,520.00",Professional Services,GL7 7AL
"Department for Business, Innovation and Skills",UK Shared Business Services Ltd,06/06/2022,Health & Safety (inc. Medicals & Opticians),Corporate HR,Swindon Occupational Medical Services Ltd,99739551,"1,250.00",Professional Services,GL7 7AL
"Department for Business, Innovation and Skills",UK Shared Business Services Ltd,06/06/2022,Health & Safety (inc. Medicals & Opticians),Corporate HR,Swindon Occupational Medical Services Ltd,99739551,"1,030.00",OVERBILL PO 4080023938,GL7 7AL
"Department for Business, Innovation and Skills",UK Shared Business Services Ltd,06/06/2022,Computing Consumables,D&I Management,Unspecified,99740141,119.46,GPC_Computer Consumables,HOME
"Department for Business, Innovation and Skills",UK Shared Business Services Ltd,06/06/2022,GPC Clearing - SSC,Balance Sheet,Unspecified,99740141,-119.46,Unspecified,HOME
"Department for Business, Innovation and Skills",UK Shared Business Services Ltd,06/06/2022,Computing Consumables,D&I Management,Unspecified,99740142,160.74,GPC_Computer Consumables,HOME
"Department for Business, Innovation and Skills",UK Shared Business Services Ltd,06/06/2022,GPC Clearing - SSC,Balance Sheet,Unspecified,99740142,-160.74,Unspecified,HOME
"Department for Business, Innovation and Skills",UK Shared Business Services Ltd,06/06/2022,GPC Clearing - SSC,Balance Sheet,Unspecified,99740143,-25.16,Unspecified,HOME
"Department for Business, Innovation and Skills",UK Shared Business Services Ltd,06/06/2022,GPC Sundry Expenditure,D&I Management,Unspecified,99740143,25.16,GPC_Miscellaneous GPC Expenditure,HOME
"Department for Business, Innovation and Skills",UK Shared Business Services Ltd,06/06/2022,Computing Consumables,D&I Management,Unspecified,99740144,48.66,GPC_Computer Consumables,HOME
"Department for Business, Innovation and Skills",UK Shared Business Services Ltd,06/06/2022,GPC Clearing - SSC,Balance Sheet,Unspecified,99740144,-48.66,Unspecified,HOME
"Department for Business, Innovation and Skills",UK Shared Business Services Ltd,06/06/2022,T&S - Other Charges,Contact Centres,Unspecified,99740145,199,Home-working Equipment,HOME
"Department for Business, Innovation and Skills",UK Shared Business Services Ltd,06/06/2022,T&S - Mileage,EABA,Unspecified,99740146,74.4,Mileage - Car (excl Home to Office),HOME
"Department for Business, Innovation and Skills",UK Shared Business Services Ltd,06/06/2022,UK - Professional Memberships & Subscriptions,People,Unspecified,99740147,168,Professional Subscriptions (Actuals),HOME
"Department for Business, Innovation and Skills",UK Shared Business Services Ltd,07/06/2022,Staff Training,Corporate HR,HTFT Partnership Ltd,99739547,"1,300.00",Training,B90 1RX
"Department for Business, Innovation and Skills",UK Shared Business Services Ltd,07/06/2022,Marketing & PR,Communications,JFDI Consulting Ltd,99739673,"5,250.00",Marketing & Design,W1W 5PF
"Department for Business, Innovation and Skills",UK Shared Business Services Ltd,07/06/2022,Data Storage & Recovery,Finance Operations 1,The Maltings Document Storage Solutions Ltd,99740923,332.59,Computing Services,CF24 5EZ
"Department for Business, Innovation and Skills",UK Shared Business Services Ltd,07/06/2022,Legal & Professional Services,SHARP,DAC Beachcroft LLP,99741093,"13,902.72",Professional Services,BS1 9HS
"Department for Business, Innovation and Skills",UK Shared Business Services Ltd,07/06/2022,Computer Software Licences,Production Services,CareerBuilder UK Ltd,99741718,"24,000.00",Computer Consumables,E14 9SH
"Department for Business, Innovation and Skills",UK Shared Business Services Ltd,07/06/2022,T&S - Parking Tolls Congestion Charges,Operational Excellence,Unspecified,99741772,10,"Parking, Tolls, Congestion Charge",HOME
"Department for Business, Innovation and Skills",UK Shared Business Services Ltd,08/06/2022,Computer Software,Production Services,BSI Assurance UK Ltd,99739533,"1,171.20",Computer Consumables,MK1 9EL
"Department for Business, Innovation and Skills",UK Shared Business Services Ltd,08/06/2022,Recruitment Costs,Corporate HR,Agenda Resource Management Ltd,99740987,353.93,Professional Services,HU12 8YJ
"Department for Business, Innovation and Skills",UK Shared Business Services Ltd,08/06/2022,Recruitment Costs,Corporate HR,Everwell Occupational Health Ltd,99744042,252,Professional Services,CW11 3AE
"Department for Business, Innovation and Skills",UK Shared Business Services Ltd,08/06/2022,Contract Staff,Corporate HR,Alexander Mann Solutions Ltd,99744057,"3,780.36",Recruitment Services,EC2N 3AQ
"Department for Business, Innovation and Skills",UK Shared Business Services Ltd,08/06/2022,T&S - Public Transport,Accounting,Unspecified,99744190,17.1,Public Transport - Taxi Fare (Actuals),HOME
"Department for Business, Innovation and Skills",UK Shared Business Services Ltd,08/06/2022,Contract Staff,Project Office,Alexander Mann Solutions Ltd,99744757,"3,649.14",Recruitment Services,EC2N 3AQ
"Department for Business, Innovation and Skills",UK Shared Business Services Ltd,08/06/2022,Contract Staff,Corporate Commercial,Alexander Mann Solutions Ltd,99744758,"3,151.56",Recruitment Services,EC2N 3AQ
"Department for Business, Innovation and Skills",UK Shared Business Services Ltd,08/06/2022,Contract Staff,Production Services,Alexander Mann Solutions Ltd,99744759,"5,543.32",Recruitment Services,EC2N 3AQ
"Department for Business, Innovation and Skills",UK Shared Business Services Ltd,08/06/2022,Contract Staff,Production Services,Alexander Mann Solutions Ltd,99744766,"2,648.52",Recruitment Services,EC2N 3AQ
"Department for Business, Innovation and Skills",UK Shared Business Services Ltd,09/06/2022,Recruitment Costs,People,Onefix Recruitment Ltd,99736865,180,Recruitment Services,PO3 5EJ
"Department for Business, Innovation and Skills",UK Shared Business Services Ltd,09/06/2022,Computing Consumables,Production Services,Total Computer Networks Ltd,99744812,11.94,Computer Consumables,NN16 8GA
"Department for Business, Innovation and Skills",UK Shared Business Services Ltd,09/06/2022,Computing Consumables,Production Services,Total Computer Networks Ltd,99744812,160.32,Computer Consumables,NN16 8GA
"Department for Business, Innovation and Skills",UK Shared Business Services Ltd,09/06/2022,Computing Consumables,Production Services,Total Computer Networks Ltd,99744812,176.64,Computer Consumables,NN16 8GA
"Department for Business, Innovation and Skills",UK Shared Business Services Ltd,09/06/2022,Computer Software Licences,ERP Support,Oracle Corporation UK Ltd,99746092,"269,853.40",Core Service Bundle - Dec 21- Feb 22,RG6 1RA
"Department for Business, Innovation and Skills",UK Shared Business Services Ltd,09/06/2022,Computer Software Licences,ERP Support,Oracle Corporation UK Ltd,99746092,"490,696.72",Core Service Bundle - Mar 22 - May 22,RG6 1RA
"Department for Business, Innovation and Skills",UK Shared Business Services Ltd,09/06/2022,IT Cloud Services,Production Services,Bytes Software Services Ltd,99746164,"168,600.00",Year 2,KT22 7TW
"Department for Business, Innovation and Skills",UK Shared Business Services Ltd,09/06/2022,T&S - Parking Tolls Congestion Charges,Operational Excellence,Unspecified,99746250,10,"Parking, Tolls, Congestion Charge",HOME
"Department for Business, Innovation and Skills",UK Shared Business Services Ltd,10/06/2022,Computer Software Licences,ERP Support,Oracle Corporation UK Ltd,99331730,"24,505.03",Core Service Bundle - Mar 22 - May 22,BH7 7DA
"Department for Business, Innovation and Skills",UK Shared Business Services Ltd,10/06/2022,Computer Software Licences,ERP Support,Oracle Corporation UK Ltd,99331730,"204,320.03",Grants Service Bundle - Sept 21 - Nov 21,BH7 7DA
"Department for Business, Innovation and Skills",UK Shared Business Services Ltd,10/06/2022,Computer Software Licences,ERP Support,Oracle Corporation UK Ltd,99331730,"204,320.03",Grants Service Bundle - Dec 21- Feb 22,BH7 7DA
"Department for Business, Innovation and Skills",UK Shared Business Services Ltd,10/06/2022,Computer Software Licences,ERP Support,Oracle Corporation UK Ltd,99331730,"204,320.02",Grants Service Bundle - Mar 22 - May 22,BH7 7DA
"Department for Business, Innovation and Skills",UK Shared Business Services Ltd,10/06/2022,Computer Software Licences,ERP Support,Oracle Corporation UK Ltd,99331730,"20,404.61",Image Capture Bundle - Dec 21- Feb 22,BH7 7DA
"Department for Business, Innovation and Skills",UK Shared Business Services Ltd,10/06/2022,Computer Software Licences,ERP Support,Oracle Corporation UK Ltd,99331730,"20,404.68",Image Capture Bundle - Mar 22 - May 22,BH7 7DA
"Department for Business, Innovation and Skills",UK Shared Business Services Ltd,10/06/2022,Computer Software Licences,ERP Support,Oracle Corporation UK Ltd,99331730,"20,404.68",Image Capture Bundle - Sept 21 - Nov 21,BH7 7DA
"Department for Business, Innovation and Skills",UK Shared Business Services Ltd,10/06/2022,Computer Software Licences,ERP Support,Oracle Corporation UK Ltd,99331730,"20,623.68",Non-Core Service Bundle - Dec 21- Feb 22,BH7 7DA
"Department for Business, Innovation and Skills",UK Shared Business Services Ltd,10/06/2022,Computer Software Licences,ERP Support,Oracle Corporation UK Ltd,99331730,"20,623.68",Non-Core Service Bundle - Mar 22 - May 22,BH7 7DA
"Department for Business, Innovation and Skills",UK Shared Business Services Ltd,10/06/2022,Computer Software Licences,ERP Support,Oracle Corporation UK Ltd,99331730,"20,623.68",Non-Core Service Bundle - Sept 21 - Nov 21,BH7 7DA
"Department for Business, Innovation and Skills",UK Shared Business Services Ltd,10/06/2022,Computer Software,HR Ops,Towers Watson Ltd,99418751,"2,780.40",Computing Software,RH2 9PQ
"Department for Business, Innovation and Skills",UK Shared Business Services Ltd,10/06/2022,Computer Software,SIAM,Softcat plc,99745655,277.9,Computing Software,SL7 1LW
"Department for Business, Innovation and Skills",UK Shared Business Services Ltd,10/06/2022,Health & Safety (inc. Medicals & Opticians),People,Swindon Occupational Medical Services Ltd,99747666,"2,280.00",Professional Services,GL7 7AL
"Department for Business, Innovation and Skills",UK Shared Business Services Ltd,13/06/2022,Staff Training,HRSD Recoverables,The Retirement Counselling Service Ltd,99747906,"1,320.00",Training,HP6 6JQ
"Department for Business, Innovation and Skills",UK Shared Business Services Ltd,13/06/2022,T&S - Mileage,SHARP,Unspecified,99748008,53.28,Mileage - Car (excl Home to Office),HOME
"Department for Business, Innovation and Skills",UK Shared Business Services Ltd,13/06/2022,GPC Clearing - SSC,Balance Sheet,Unspecified,99748009,-140,Unspecified,HOME
"Department for Business, Innovation and Skills",UK Shared Business Services Ltd,13/06/2022,UK - Professional Memberships & Subscriptions,Facilities,Unspecified,99748009,140,GPC T&S UK Professional Subscriptions,HOME
"Department for Business, Innovation and Skills",UK Shared Business Services Ltd,13/06/2022,T&S - Other Charges,Finance Operations 1,Unspecified,99748010,80,Miscellaneous (Actuals),HOME
"Department for Business, Innovation and Skills",UK Shared Business Services Ltd,13/06/2022,Staff Training,HRSD Recoverables,ASK Europe PLC,99749526,504,Training,MK43 0BT
"Department for Business, Innovation and Skills",UK Shared Business Services Ltd,13/06/2022,Staff Training,HRSD Recoverables,ASK Europe PLC,99749527,840,Training,MK43 0BT
"Department for Business, Innovation and Skills",UK Shared Business Services Ltd,13/06/2022,Staff Training,HRSD Recoverables,ASK Europe PLC,99749535,840,Training,MK43 0BT
"Department for Business, Innovation and Skills",UK Shared Business Services Ltd,14/06/2022,Computing Consumables,Production Services,Probrand Ltd,99734930,"3,542.04",Computer Consumables,SMARTFORM
"Department for Business, Innovation and Skills",UK Shared Business Services Ltd,14/06/2022,Computing Consumables,Production Services,Probrand Ltd,99734930,6,Computer Consumables,SMARTFORM
"Department for Business, Innovation and Skills",UK Shared Business Services Ltd,14/06/2022,IT Cloud Services,Production Services,FlyForm Ltd,99739088,"33,644.16",Service Now: 1) PROD11353 ServiceNow: IT Service Management Standard (24 Dec 2021- 27 Jun 2023) 2) PROD03426 ServiceNow Performance Analytics For IT Service Management (24 Dec 2021-27 Jun 2023),CF10 3AG
"Department for Business, Innovation and Skills",UK Shared Business Services Ltd,14/06/2022,IT Cloud Services,Production Services,FlyForm Ltd,99739088,"5,462.10",Computing Software,CF10 3AG
"Department for Business, Innovation and Skills",UK Shared Business Services Ltd,14/06/2022,IT Cloud Services,Production Services,FlyForm Ltd,99739088,"269,323.20",Computing Software,CF10 3AG
"Department for Business, Innovation and Skills",UK Shared Business Services Ltd,14/06/2022,IT Cloud Services,Production Services,FlyForm Ltd,99739088,"56,914.74",Computing Software,CF10 3AG
"Department for Business, Innovation and Skills",UK Shared Business Services Ltd,14/06/2022,Computing Consumables,Production Services,Probrand Ltd,99741113,760.93,Computer Consumables,SMARTFORM
"Department for Business, Innovation and Skills",UK Shared Business Services Ltd,14/06/2022,Contract Staff,People,Alexander Mann Solutions Ltd,99744762,"7,696.44",Recruitment Services,EC2N 3AQ
"Department for Business, Innovation and Skills",UK Shared Business Services Ltd,14/06/2022,PAYE Payable Salaries,Balance Sheet,HM Revenue & Customs,99745161,"188,202.73",SR11138950 HMRC monthly deductions for SSC May 2022,3RD PARTY PAYME
"Department for Business, Innovation and Skills",UK Shared Business Services Ltd,14/06/2022,NI Payable Salaries,Balance Sheet,HM Revenue & Customs,99745162,"296,801.52",SR11138950 HMRC monthly deductions for SSC May 2022,3RD PARTY PAYME
"Department for Business, Innovation and Skills",UK Shared Business Services Ltd,14/06/2022,Student Loans,Balance Sheet,HM Revenue & Customs,99745163,"2,531.00",SR11138950 HMRC monthly deductions for SSC May 2022,3RD PARTY PAYME
"Department for Business, Innovation and Skills",UK Shared Business Services Ltd,14/06/2022,Apprenticeship Levy,Corporate HR,HM Revenue & Customs,99745164,"6,646.00",SR11138950 HMRC monthly deductions for SSC May 2022,3RD PARTY PAYME
"Department for Business, Innovation and Skills",UK Shared Business Services Ltd,14/06/2022,Computing Consumables,Production Services,Probrand Ltd,99746163,231.59,Computer Consumables,SMARTFORM
"Department for Business, Innovation and Skills",UK Shared Business Services Ltd,14/06/2022,Consultancy Services,Production Services,Premiertec Consulting Ltd t/a Claremont,99747865,"37,335.00","Consultancy and Professional Services to develop two key work areas around API re-development and re-use, and automation of features connected to the primary and sub-processes associated with the SML process. Also included: BAU, CIs and CRs",NE1 3DY
"Department for Business, Innovation and Skills",UK Shared Business Services Ltd,14/06/2022,Hardware/Software Maintenance,Production Services,XMA Ltd,99750107,"20,548.01",Computing Services,SWAREHOUSEONLY
"Department for Business, Innovation and Skills",UK Shared Business Services Ltd,14/06/2022,Contract Staff,Project Office,Alexander Mann Solutions Ltd,99750203,"2,189.48",Recruitment Services,EC2N 3AQ
"Department for Business, Innovation and Skills",UK Shared Business Services Ltd,14/06/2022,Contract Staff,Corporate HR,Alexander Mann Solutions Ltd,99750205,"2,268.22",Recruitment Services,EC2N 3AQ
"Department for Business, Innovation and Skills",UK Shared Business Services Ltd,14/06/2022,Contract Staff,People,Alexander Mann Solutions Ltd,99750206,"2,308.93",Recruitment Services,EC2N 3AQ
"Department for Business, Innovation and Skills",UK Shared Business Services Ltd,14/06/2022,Contract Staff,Production Services,Alexander Mann Solutions Ltd,99750208,"2,648.52",Recruitment Services,EC2N 3AQ
"Department for Business, Innovation and Skills",UK Shared Business Services Ltd,14/06/2022,Contract Staff,Corporate Commercial,Alexander Mann Solutions Ltd,99750210,"2,521.25",Recruitment Services,EC2N 3AQ
"Department for Business, Innovation and Skills",UK Shared Business Services Ltd,14/06/2022,Agency Staff,Corporate Finance,C and D Group Ltd t/a Thrive Group,99750211,622.2,Recruitment Services,SN3 4UQ
"Department for Business, Innovation and Skills",UK Shared Business Services Ltd,14/06/2022,Agency Staff,Corporate Finance,C and D Group Ltd t/a Thrive Group,99750214,774.22,Recruitment Services,SN3 4UQ
"Department for Business, Innovation and Skills",UK Shared Business Services Ltd,14/06/2022,Agency Staff,Corporate Finance,C and D Group Ltd t/a Thrive Group,99750216,767.38,Recruitment Services,SN3 4UQ
"Department for Business, Innovation and Skills",UK Shared Business Services Ltd,15/06/2022,Voluntary Deductions,Balance Sheet,Civil Service Benevolent Fund,99745165,18,SR11138950 SSC THIRD PARTY PAYMENTS May2022,SM3 8DY
"Department for Business, Innovation and Skills",UK Shared Business Services Ltd,15/06/2022,Union Deductions,Balance Sheet,PCS Union,99745166,955.11,SR11138950 SSC THIRD PARTY PAYMENTS May2022,SW11 2LN
"Department for Business, Innovation and Skills",UK Shared Business Services Ltd,15/06/2022,Voluntary Deductions,Balance Sheet,Swindon Office Sports and Social Club,99745167,180,SR11138950 SSC THIRD PARTY PAYMENTS May2022,SN2 1EU
"Department for Business, Innovation and Skills",UK Shared Business Services Ltd,15/06/2022,Ees Pension Deductions - JSS,Balance Sheet,RCPS Pension,99745168,"80,716.14",SR11138950 RCPS monthly contributions for SSC May2022,SN2 1UY.
"Department for Business, Innovation and Skills",UK Shared Business Services Ltd,15/06/2022,Ers Pension Deductions - JSS,Balance Sheet,RCPS Pension,99745169,"364,201.16",SR11138950 RCPS monthly contributions for SSC May2022,SN2 1UY.
"Department for Business, Innovation and Skills",UK Shared Business Services Ltd,15/06/2022,Other Pension Deductions,Balance Sheet,Scottish Widows,99745170,100,SR11138950 SSC THIRD PARTY PAYMENTS May2022,EH16 5BU
"Department for Business, Innovation and Skills",UK Shared Business Services Ltd,15/06/2022,Partnership Pension Deductions,Balance Sheet,Scottish Widows,99745171,"3,730.32",SR11138950 SSC THIRD PARTY PAYMENTS May2022,EH16 5BU
"Department for Business, Innovation and Skills",UK Shared Business Services Ltd,15/06/2022,Partnership Pension Deductions,Balance Sheet,Standard Life Assurance Ltd,99745172,391.31,SR11138950 SSC THIRD PARTY PAYMENTS May2022,EH1 2DH
"Department for Business, Innovation and Skills",UK Shared Business Services Ltd,15/06/2022,Other Pension Deductions,Balance Sheet,Equiniti Ltd,99745173,396.11,SR11138950 SSC THIRD PARTY PAYMENTS May2022,BN99 9AP
"Department for Business, Innovation and Skills",UK Shared Business Services Ltd,15/06/2022,Partnership Pension Deductions,Balance Sheet,Prudential Plc,99745174,451.08,SR11138950 SSC THIRD PARTY PAYMENTS May2022,EC4R 0HH
"Department for Business, Innovation and Skills",UK Shared Business Services Ltd,15/06/2022,Ees Pension Deductions - MRC,Balance Sheet,JLT Pensions Administration Ltd T/A JLT Employee Benefits,99745175,"4,121.15",SR11138950 SSC THIRD PARTY PAYMENTS May2022,PRINCIPAL SECTI
"Department for Business, Innovation and Skills",UK Shared Business Services Ltd,15/06/2022,Ers Pension Deductions - MRC,Balance Sheet,JLT Pensions Administration Ltd T/A JLT Employee Benefits,99745176,"10,714.98",SR11138950 SSC THIRD PARTY PAYMENTS May2022,PRINCIPAL SECTI
"Department for Business, Innovation and Skills",UK Shared Business Services Ltd,15/06/2022,Voluntary Deductions,Balance Sheet,BHCA (Services) Ltd,99745177,59.15,SR11138950 SSC THIRD PARTY PAYMENTS May2022,NN14 1UE
"Department for Business, Innovation and Skills",UK Shared Business Services Ltd,15/06/2022,Ees Pension Deductions - MyCSP,Balance Sheet,Cabinet Office RM Shared Services,99745178,145.36,SR11138950 UKSBS THIRD PARTY PAYMENTS May 2022,FY5 3TA
"Department for Business, Innovation and Skills",UK Shared Business Services Ltd,15/06/2022,Ers Pension Deductions - MyCSP,Balance Sheet,Cabinet Office RM Shared Services,99745179,722.78,SR11138950 UKSBS THIRD PARTY PAYMENTS May 2022,FY5 3TA
"Department for Business, Innovation and Skills",UK Shared Business Services Ltd,15/06/2022,T&S - Accommodation,Central Services Management,Corporate Travel Management (North) Ltd,99751192,0.8,17/05/2022----Hotel Fee,BD1 5HQ
"Department for Business, Innovation and Skills",UK Shared Business Services Ltd,15/06/2022,T&S - Accommodation,Central Services Management,Corporate Travel Management (North) Ltd,99751192,75,17/05/2022--Jurys Inn Swindon-Bristol-Hotel,BD1 5HQ
"Department for Business, Innovation and Skills",UK Shared Business Services Ltd,15/06/2022,T&S - Accommodation,Central Services Management,Corporate Travel Management (North) Ltd,99751192,0.16,Travel & Hotel charges,BD1 5HQ
"Department for Business, Innovation and Skills",UK Shared Business Services Ltd,15/06/2022,T&S - Accommodation,Finance Operations 2,Corporate Travel Management (North) Ltd,99751192,0.8,22/05/2022----Hotel Fee,BD1 5HQ
"Department for Business, Innovation and Skills",UK Shared Business Services Ltd,15/06/2022,T&S - Accommodation,Finance Operations 2,Corporate Travel Management (North) Ltd,99751192,207,22/05/2022--Hampton By Hilton S-Teesside-Hotel,BD1 5HQ
"Department for Business, Innovation and Skills",UK Shared Business Services Ltd,15/06/2022,T&S - Accommodation,Finance Operations 2,Corporate Travel Management (North) Ltd,99751192,0.16,Travel & Hotel charges,BD1 5HQ
"Department for Business, Innovation and Skills",UK Shared Business Services Ltd,15/06/2022,T&S - Accommodation,Finance Services,Corporate Travel Management (North) Ltd,99751192,0.8,09/05/2022----Hotel Fee,BD1 5HQ
"Department for Business, Innovation and Skills",UK Shared Business Services Ltd,15/06/2022,T&S - Accommodation,Finance Services,Corporate Travel Management (North) Ltd,99751192,150,09/05/2022--Jurys Inn Swindon-Bristol-Hotel,BD1 5HQ
"Department for Business, Innovation and Skills",UK Shared Business Services Ltd,15/06/2022,T&S - Accommodation,Finance Services,Corporate Travel Management (North) Ltd,99751192,0.16,Travel & Hotel charges,BD1 5HQ
"Department for Business, Innovation and Skills",UK Shared Business Services Ltd,15/06/2022,T&S - Accommodation,HR Ops,Corporate Travel Management (North) Ltd,99751192,0.8,03/05/2022----Hotel Fee,BD1 5HQ
"Department for Business, Innovation and Skills",UK Shared Business Services Ltd,15/06/2022,T&S - Accommodation,HR Ops,Corporate Travel Management (North) Ltd,99751192,95,03/05/2022--Village Swindon-Bristol-Hotel,BD1 5HQ
"Department for Business, Innovation and Skills",UK Shared Business Services Ltd,15/06/2022,T&S - Accommodation,HR Ops,Corporate Travel Management (North) Ltd,99751192,0.8,08/05/2022----Hotel Fee,BD1 5HQ
"Department for Business, Innovation and Skills",UK Shared Business Services Ltd,15/06/2022,T&S - Accommodation,HR Ops,Corporate Travel Management (North) Ltd,99751192,280,08/05/2022--Village Swindon-Bristol-Hotel,BD1 5HQ
"Department for Business, Innovation and Skills",UK Shared Business Services Ltd,15/06/2022,T&S - Accommodation,HR Ops,Corporate Travel Management (North) Ltd,99751192,0.8,09/05/2022----Hotel Fee,BD1 5HQ
"Department for Business, Innovation and Skills",UK Shared Business Services Ltd,15/06/2022,T&S - Accommodation,HR Ops,Corporate Travel Management (North) Ltd,99751192,110,09/05/2022-Mr Mark Wilson-Village Swindon-Bristol-Hotel,BD1 5HQ
"Department for Business, Innovation and Skills",UK Shared Business Services Ltd,15/06/2022,T&S - Accommodation,HR Ops,Corporate Travel Management (North) Ltd,99751192,0.8,22/05/2022----Hotel Fee,BD1 5HQ
"Department for Business, Innovation and Skills",UK Shared Business Services Ltd,15/06/2022,T&S - Accommodation,HR Ops,Corporate Travel Management (North) Ltd,99751192,207,22/05/2022--Hampton By Hilton S-Teesside-Hotel,BD1 5HQ
"Department for Business, Innovation and Skills",UK Shared Business Services Ltd,15/06/2022,T&S - Accommodation,HR Ops,Corporate Travel Management (North) Ltd,99751192,0.8,22/05/2022----Hotel Fee,BD1 5HQ
"Department for Business, Innovation and Skills",UK Shared Business Services Ltd,15/06/2022,T&S - Accommodation,HR Ops,Corporate Travel Management (North) Ltd,99751192,207,22/05/2022--Hampton By Hilton S-Teesside-Hotel,BD1 5HQ
"Department for Business, Innovation and Skills",UK Shared Business Services Ltd,15/06/2022,T&S - Accommodation,HR Ops,Corporate Travel Management (North) Ltd,99751192,0.8,Travel & Hotel charges,BD1 5HQ
"Department for Business, Innovation and Skills",UK Shared Business Services Ltd,15/06/2022,T&S - Accommodation,HR Ops & Specialists,Corporate Travel Management (North) Ltd,99751192,0.8,24/05/2022----Hotel Fee,BD1 5HQ
"Department for Business, Innovation and Skills",UK Shared Business Services Ltd,15/06/2022,T&S - Accommodation,HR Ops & Specialists,Corporate Travel Management (North) Ltd,99751192,75,24/05/2022--Jurys Inn Swindon-Bristol-Hotel,BD1 5HQ
"Department for Business, Innovation and Skills",UK Shared Business Services Ltd,15/06/2022,T&S - Accommodation,HR Ops & Specialists,Corporate Travel Management (North) Ltd,99751192,0.16,Travel & Hotel charges,BD1 5HQ
"Department for Business, Innovation and Skills",UK Shared Business Services Ltd,15/06/2022,T&S - Other Charges,Finance Operations 2,Corporate Travel Management (North) Ltd,99751192,0.25,19/05/2022----Rail Fee,BD1 5HQ
"Department for Business, Innovation and Skills",UK Shared Business Services Ltd,15/06/2022,T&S - Other Charges,Finance Operations 2,Corporate Travel Management (North) Ltd,99751192,35,19/05/2022--Newport S.wales-Swindon-Rail,BD1 5HQ
"Department for Business, Innovation and Skills",UK Shared Business Services Ltd,15/06/2022,T&S - Other Charges,Finance Operations 2,Corporate Travel Management (North) Ltd,99751192,0.25,25/05/2022----Rail Fee,BD1 5HQ
"Department for Business, Innovation and Skills",UK Shared Business Services Ltd,15/06/2022,T&S - Other Charges,Finance Operations 2,Corporate Travel Management (North) Ltd,99751192,35,25/05/2022--Newport S.wales-Swindon-Rail,BD1 5HQ
"Department for Business, Innovation and Skills",UK Shared Business Services Ltd,15/06/2022,T&S - Public Transport,Category and Continuous Improvement,Corporate Travel Management (North) Ltd,99751192,0.25,05/05/2022----Rail Fee,BD1 5HQ
"Department for Business, Innovation and Skills",UK Shared Business Services Ltd,15/06/2022,T&S - Public Transport,Category and Continuous Improvement,Corporate Travel Management (North) Ltd,99751192,49.2,05/05/2022--Bridgend-Swindon-Rail,BD1 5HQ
"Department for Business, Innovation and Skills",UK Shared Business Services Ltd,15/06/2022,T&S - Public Transport,Category and Continuous Improvement,Corporate Travel Management (North) Ltd,99751192,0.25,10/05/2022----Rail Fee,BD1 5HQ
"Department for Business, Innovation and Skills",UK Shared Business Services Ltd,15/06/2022,T&S - Public Transport,Category and Continuous Improvement,Corporate Travel Management (North) Ltd,99751192,35,10/05/2022--Newport S.wales-Swindon-Rail,BD1 5HQ
"Department for Business, Innovation and Skills",UK Shared Business Services Ltd,15/06/2022,T&S - Public Transport,Category and Continuous Improvement,Corporate Travel Management (North) Ltd,99751192,0.25,19/05/2022---Rail Fee,BD1 5HQ
"Department for Business, Innovation and Skills",UK Shared Business Services Ltd,15/06/2022,T&S - Public Transport,Category and Continuous Improvement,Corporate Travel Management (North) Ltd,99751192,35,19/05/2022--Newport S.wales-Swindon-Rail,BD1 5HQ
"Department for Business, Innovation and Skills",UK Shared Business Services Ltd,15/06/2022,T&S - Public Transport,Core Services,Corporate Travel Management (North) Ltd,99751192,0.25,05/05/2022----Rail Fee,BD1 5HQ
"Department for Business, Innovation and Skills",UK Shared Business Services Ltd,15/06/2022,T&S - Public Transport,Core Services,Corporate Travel Management (North) Ltd,99751192,40.7,05/05/2022--Cathays-Swindon-Rail,BD1 5HQ
"Department for Business, Innovation and Skills",UK Shared Business Services Ltd,15/06/2022,T&S - Public Transport,Core Services,Corporate Travel Management (North) Ltd,99751192,0.25,25/05/2022----Rail Fee,BD1 5HQ
"Department for Business, Innovation and Skills",UK Shared Business Services Ltd,15/06/2022,T&S - Public Transport,Core Services,Corporate Travel Management (North) Ltd,99751192,157.2,25/05/2022-Ms Rebecca Fish-Swindon (wilts)-ZONE U1* LONDN-Rail,BD1 5HQ
"Department for Business, Innovation and Skills",UK Shared Business Services Ltd,15/06/2022,T&S - Public Transport,Corporate Finance,Corporate Travel Management (North) Ltd,99751192,0.25,05/05/2022----Rail Fee,BD1 5HQ
"Department for Business, Innovation and Skills",UK Shared Business Services Ltd,15/06/2022,T&S - Public Transport,Corporate Finance,Corporate Travel Management (North) Ltd,99751192,35,05/05/2022--Pontypool And New Inn-Swindon-Rail,BD1 5HQ
"Department for Business, Innovation and Skills",UK Shared Business Services Ltd,15/06/2022,T&S - Public Transport,Corporate Finance,Corporate Travel Management (North) Ltd,99751192,0.25,19/05/2022----Rail Fee,BD1 5HQ
"Department for Business, Innovation and Skills",UK Shared Business Services Ltd,15/06/2022,T&S - Public Transport,Corporate Finance,Corporate Travel Management (North) Ltd,99751192,23,19/05/2022--Newport S.wales-Swindon-Rail,BD1 5HQ
"Department for Business, Innovation and Skills",UK Shared Business Services Ltd,15/06/2022,T&S - Public Transport,Corporate Finance,Corporate Travel Management (North) Ltd,99751192,0.25,19/05/2022-Mr Simon Best---Rail Fee,BD1 5HQ
"Department for Business, Innovation and Skills",UK Shared Business Services Ltd,15/06/2022,T&S - Public Transport,Corporate Finance,Corporate Travel Management (North) Ltd,99751192,35,19/05/2022--Pontypool And New Inn-Swindon-Rail,BD1 5HQ
"Department for Business, Innovation and Skills",UK Shared Business Services Ltd,15/06/2022,T&S - Public Transport,Corporate Finance,Corporate Travel Management (North) Ltd,99751192,0.25,19/05/2022----Rail Fee,BD1 5HQ
"Department for Business, Innovation and Skills",UK Shared Business Services Ltd,15/06/2022,T&S - Public Transport,Corporate Finance,Corporate Travel Management (North) Ltd,99751192,35,19/05/2022--Newport S.wales-Swindon-Rail,BD1 5HQ
"Department for Business, Innovation and Skills",UK Shared Business Services Ltd,15/06/2022,T&S - Public Transport,D&I Management,Corporate Travel Management (North) Ltd,99751192,0.25,09/06/2022----Rail Fee,BD1 5HQ
"Department for Business, Innovation and Skills",UK Shared Business Services Ltd,15/06/2022,T&S - Public Transport,D&I Management,Corporate Travel Management (North) Ltd,99751192,272.1,09/06/2022--Cardiff Central-London Zones 1-6-Rail,BD1 5HQ
"Department for Business, Innovation and Skills",UK Shared Business Services Ltd,15/06/2022,T&S - Public Transport,D&I Management,Corporate Travel Management (North) Ltd,99751192,0.25,09/06/2022-Ms Sian Fairnie---Rail Fee,BD1 5HQ
"Department for Business, Innovation and Skills",UK Shared Business Services Ltd,15/06/2022,T&S - Public Transport,D&I Management,Corporate Travel Management (North) Ltd,99751192,158.5,09/06/2022--Swindon (wilts)-London Zones 1-6-Rail,BD1 5HQ
"Department for Business, Innovation and Skills",UK Shared Business Services Ltd,15/06/2022,T&S - Public Transport,D&I Management,Corporate Travel Management (North) Ltd,99751192,0.25,13/06/2022----Rail Fee,BD1 5HQ
"Department for Business, Innovation and Skills",UK Shared Business Services Ltd,15/06/2022,T&S - Public Transport,D&I Management,Corporate Travel Management (North) Ltd,99751192,306.6,13/06/2022--Billingham (cleveland)-Swindon-Rail,BD1 5HQ
"Department for Business, Innovation and Skills",UK Shared Business Services Ltd,15/06/2022,T&S - Public Transport,D&I Management,Corporate Travel Management (North) Ltd,99751192,0.25,20/06/2022----Rail Fee,BD1 5HQ
"Department for Business, Innovation and Skills",UK Shared Business Services Ltd,15/06/2022,T&S - Public Transport,D&I Management,Corporate Travel Management (North) Ltd,99751192,306.6,20/06/2022--Billingham (cleveland)-Swindon-Rail,BD1 5HQ
"Department for Business, Innovation and Skills",UK Shared Business Services Ltd,15/06/2022,T&S - Public Transport,DDaT,Corporate Travel Management (North) Ltd,99751192,0.25,05/05/2022----Rail Fee,BD1 5HQ
"Department for Business, Innovation and Skills",UK Shared Business Services Ltd,15/06/2022,T&S - Public Transport,DDaT,Corporate Travel Management (North) Ltd,99751192,40.7,05/05/2022--Cardiff Central-Swindon-Rail,BD1 5HQ
"Department for Business, Innovation and Skills",UK Shared Business Services Ltd,15/06/2022,T&S - Public Transport,ERP Support,Corporate Travel Management (North) Ltd,99751192,0.25,24/05/2022----Rail Fee,BD1 5HQ
"Department for Business, Innovation and Skills",UK Shared Business Services Ltd,15/06/2022,T&S - Public Transport,ERP Support,Corporate Travel Management (North) Ltd,99751192,35,24/05/2022--Newport S.wales-Swindon-Rail,BD1 5HQ
"Department for Business, Innovation and Skills",UK Shared Business Services Ltd,15/06/2022,T&S - Public Transport,ERP Support,Corporate Travel Management (North) Ltd,99751192,0.25,24/05/2022---Rail Fee,BD1 5HQ
"Department for Business, Innovation and Skills",UK Shared Business Services Ltd,15/06/2022,T&S - Public Transport,ERP Support,Corporate Travel Management (North) Ltd,99751192,40.7,24/05/2022--Cardiff Central-Swindon-Rail,BD1 5HQ
"Department for Business, Innovation and Skills",UK Shared Business Services Ltd,15/06/2022,T&S - Public Transport,Executive Function,Corporate Travel Management (North) Ltd,99751192,0.25,12/05/2022----Rail Fee,BD1 5HQ
"Department for Business, Innovation and Skills",UK Shared Business Services Ltd,15/06/2022,T&S - Public Transport,Executive Function,Corporate Travel Management (North) Ltd,99751192,80.3,12/05/2022--Didcot Parkway-London Paddington-Rail,BD1 5HQ
"Department for Business, Innovation and Skills",UK Shared Business Services Ltd,15/06/2022,T&S - Public Transport,Finance Operations 2,Corporate Travel Management (North) Ltd,99751192,0.25,11/05/2022----Rail Fee,BD1 5HQ
"Department for Business, Innovation and Skills",UK Shared Business Services Ltd,15/06/2022,T&S - Public Transport,Finance Operations 2,Corporate Travel Management (North) Ltd,99751192,35,11/05/2022--Abergavenny-Swindon-Rail,BD1 5HQ
"Department for Business, Innovation and Skills",UK Shared Business Services Ltd,15/06/2022,T&S - Public Transport,Finance Operations 2,Corporate Travel Management (North) Ltd,99751192,0.25,15/06/2022----Rail Fee,BD1 5HQ
"Department for Business, Innovation and Skills",UK Shared Business Services Ltd,15/06/2022,T&S - Public Transport,Finance Operations 2,Corporate Travel Management (North) Ltd,99751192,41.4,15/06/2022--Manchester Oxford Road-Edinburgh-Rail,BD1 5HQ
"Department for Business, Innovation and Skills",UK Shared Business Services Ltd,15/06/2022,T&S - Public Transport,Finance Operations 2,Corporate Travel Management (North) Ltd,99751192,0.25,25/05/2022----Rail Fee,BD1 5HQ
"Department for Business, Innovation and Skills",UK Shared Business Services Ltd,15/06/2022,T&S - Public Transport,Finance Operations 2,Corporate Travel Management (North) Ltd,99751192,35,25/05/2022--Abergavenny-Swindon-Rail,BD1 5HQ
"Department for Business, Innovation and Skills",UK Shared Business Services Ltd,15/06/2022,T&S - Public Transport,Finance Services,Corporate Travel Management (North) Ltd,99751192,0.25,13/06/2022----Rail Fee,BD1 5HQ
"Department for Business, Innovation and Skills",UK Shared Business Services Ltd,15/06/2022,T&S - Public Transport,Finance Services,Corporate Travel Management (North) Ltd,99751192,89.9,13/06/2022--Newport S.wales-Manchester Piccadilly-Rail,BD1 5HQ
"Department for Business, Innovation and Skills",UK Shared Business Services Ltd,15/06/2022,T&S - Public Transport,Finance Services,Corporate Travel Management (North) Ltd,99751192,0.25,13/06/2022----Rail Fee,BD1 5HQ
"Department for Business, Innovation and Skills",UK Shared Business Services Ltd,15/06/2022,T&S - Public Transport,Finance Services,Corporate Travel Management (North) Ltd,99751192,101.6,13/06/2022--Swindon (wilts)-Manchester Piccadilly-Rail,BD1 5HQ
"Department for Business, Innovation and Skills",UK Shared Business Services Ltd,15/06/2022,T&S - Public Transport,Finance Services,Corporate Travel Management (North) Ltd,99751192,0.25,13/06/2022----Rail Fee,BD1 5HQ
"Department for Business, Innovation and Skills",UK Shared Business Services Ltd,15/06/2022,T&S - Public Transport,Finance Services,Corporate Travel Management (North) Ltd,99751192,29,13/06/2022--Abergavenny-Manchester Piccadilly-Rail,BD1 5HQ
"Department for Business, Innovation and Skills",UK Shared Business Services Ltd,15/06/2022,T&S - Public Transport,Finance Services,Corporate Travel Management (North) Ltd,99751192,0.25,16/05/2022---Rail Fee,BD1 5HQ
"Department for Business, Innovation and Skills",UK Shared Business Services Ltd,15/06/2022,T&S - Public Transport,Finance Services,Corporate Travel Management (North) Ltd,99751192,23.1,16/05/2022--Swindon (wilts)-Newport Gwent-Rail,BD1 5HQ
"Department for Business, Innovation and Skills",UK Shared Business Services Ltd,15/06/2022,T&S - Public Transport,Finance Services,Corporate Travel Management (North) Ltd,99751192,0.25,30/05/2022----Rail Fee,BD1 5HQ
"Department for Business, Innovation and Skills",UK Shared Business Services Ltd,15/06/2022,T&S - Public Transport,Finance Services,Corporate Travel Management (North) Ltd,99751192,35,30/05/2022--Abergavenny-Swindon-Rail,BD1 5HQ
"Department for Business, Innovation and Skills",UK Shared Business Services Ltd,15/06/2022,T&S - Public Transport,HR Ops,Corporate Travel Management (North) Ltd,99751192,0.25,05/05/2022----Rail Fee,BD1 5HQ
"Department for Business, Innovation and Skills",UK Shared Business Services Ltd,15/06/2022,T&S - Public Transport,HR Ops,Corporate Travel Management (North) Ltd,99751192,35,05/05/2022--Swindon (wilts)-Newport Gwent-Rail,BD1 5HQ
"Department for Business, Innovation and Skills",UK Shared Business Services Ltd,15/06/2022,T&S - Public Transport,HR Ops & Specialists,Corporate Travel Management (North) Ltd,99751192,0.25,24/05/2022----Rail Fee,BD1 5HQ
"Department for Business, Innovation and Skills",UK Shared Business Services Ltd,15/06/2022,T&S - Public Transport,HR Ops & Specialists,Corporate Travel Management (North) Ltd,99751192,284,24/05/2022--Thornaby-Swindon-Rail,BD1 5HQ
"Department for Business, Innovation and Skills",UK Shared Business Services Ltd,15/06/2022,T&S - Public Transport,Partnership Management,Corporate Travel Management (North) Ltd,99751192,0.25,12/05/2022----Rail Fee,BD1 5HQ
"Department for Business, Innovation and Skills",UK Shared Business Services Ltd,15/06/2022,T&S - Public Transport,Partnership Management,Corporate Travel Management (North) Ltd,99751192,133,12/05/2022--Whittlesea-London Victoria-Rail,BD1 5HQ
"Department for Business, Innovation and Skills",UK Shared Business Services Ltd,15/06/2022,T&S - Public Transport,Partnership Management,Corporate Travel Management (North) Ltd,99751192,0.25,17/05/2022----Rail Fee,BD1 5HQ
"Department for Business, Innovation and Skills",UK Shared Business Services Ltd,15/06/2022,T&S - Public Transport,Partnership Management,Corporate Travel Management (North) Ltd,99751192,264,17/05/2022--Whittlesea-Swindon-Rail,BD1 5HQ
"Department for Business, Innovation and Skills",UK Shared Business Services Ltd,15/06/2022,T&S - Public Transport,"Risk, Information & Security Compliance",Corporate Travel Management (North) Ltd,99751192,0.25,12/05/2022----Rail Fee,BD1 5HQ
"Department for Business, Innovation and Skills",UK Shared Business Services Ltd,15/06/2022,T&S - Public Transport,"Risk, Information & Security Compliance",Corporate Travel Management (North) Ltd,99751192,29.1,12/05/2022--Swindon (wilts)-Newport Gwent-Rail,BD1 5HQ
"Department for Business, Innovation and Skills",UK Shared Business Services Ltd,15/06/2022,T&S - Other Charges,Facilities,Unspecified,99753242,394.8,Home-working Equipment,HOME
"Department for Business, Innovation and Skills",UK Shared Business Services Ltd,15/06/2022,Conferences & Seminars,D&I Infrastructure & Network Services,Unspecified,99753243,74.56,Conference/Course Fees (Actuals),HOME
"Department for Business, Innovation and Skills",UK Shared Business Services Ltd,16/06/2022,Agency Staff,Corporate Finance,C and D Group Ltd t/a Thrive Group,99750217,731.09,Recruitment Services,SN3 4UQ
"Department for Business, Innovation and Skills",UK Shared Business Services Ltd,16/06/2022,Agency Staff,Corporate Finance,C and D Group Ltd t/a Thrive Group,99751034,568.19,Recruitment Services,SN3 4UQ
"Department for Business, Innovation and Skills",UK Shared Business Services Ltd,16/06/2022,Staff Training,HRSD Recoverables,Feldman Ltd T/A Brian Feldman and Associates,99753459,"1,320.00",Training,SW15 5RH
"Department for Business, Innovation and Skills",UK Shared Business Services Ltd,16/06/2022,Nursery Deductions,Balance Sheet,EDENRED (UK GROUP) LTD,99753509,"1,761.50",SR11150246 - CHILDCARE VOUCHERS A/C C10359674,SW1V 2RS
"Department for Business, Innovation and Skills",UK Shared Business Services Ltd,16/06/2022,Contract Staff,Production Services,Proventeq Limited,99753802,"59,205.75",Computer Consumables,RG6 6BU
"Department for Business, Innovation and Skills",UK Shared Business Services Ltd,17/06/2022,Staff Training,Project Office,Firebrand Training Ltd,99655711,"5,790.00",Training,WC1N 3AX
"Department for Business, Innovation and Skills",UK Shared Business Services Ltd,17/06/2022,Staff Training,HRSD Recoverables,ASK Europe PLC,99754126,840,Training,MK43 0BT
"Department for Business, Innovation and Skills",UK Shared Business Services Ltd,17/06/2022,Staff Training,HRSD Recoverables,ASK Europe PLC,99754165,840,Training,MK43 0BT
"Department for Business, Innovation and Skills",UK Shared Business Services Ltd,17/06/2022,International Subscriptions,Procurement Policy & Strategy,Experian Ltd,99754341,"1,200.00",ZZ-Memberships,NG80 1ZZ
"Department for Business, Innovation and Skills",UK Shared Business Services Ltd,17/06/2022,T&S - Public Transport,Corporate Finance,Unspecified,99754349,20.3,Public Transport - Taxi Fare (Actuals),HOME
"Department for Business, Innovation and Skills",UK Shared Business Services Ltd,17/06/2022,T&S - Public Transport,Corporate Finance,Unspecified,99754349,22.2,Public Transport - Train (Actuals),HOME
"Department for Business, Innovation and Skills",UK Shared Business Services Ltd,17/06/2022,Mobile Phone Costs,Production Services,Telefonica UK Ltd (O2),99754837,"1,621.70",SR 11141054 CALL CHARGES,SMARTFORM
"Department for Business, Innovation and Skills",UK Shared Business Services Ltd,20/06/2022,Computing Consumables,D&I Management,Unspecified,99750332,59.76,GPC_Computer Consumables,HOME
"Department for Business, Innovation and Skills",UK Shared Business Services Ltd,20/06/2022,GPC Clearing - SSC,Balance Sheet,Unspecified,99750332,-59.76,Unspecified,HOME
"Department for Business, Innovation and Skills",UK Shared Business Services Ltd,20/06/2022,Telecoms - Land Line Rental,Production Services,British Telecom Plc (BT),99751332,"13,048.41",SR 11146076 CARGES MAY 01-JUNE 30,S98 1BT
"Department for Business, Innovation and Skills",UK Shared Business Services Ltd,20/06/2022,Recruitment Costs,Corporate HR,Agenda Resource Management Ltd,99754225,567.65,Professional Services,HU12 8YJ
"Department for Business, Innovation and Skills",UK Shared Business Services Ltd,20/06/2022,Contract Staff,Corporate HR,Alexander Mann Solutions Ltd,99755045,"3,780.36",Recruitment Services,EC2N 3AQ
"Department for Business, Innovation and Skills",UK Shared Business Services Ltd,20/06/2022,Consultancy Services,Production Services,Chess Cybersecurity Ltd,99755134,"2,280.00",Computer Consumables,IP31 2QR
"Department for Business, Innovation and Skills",UK Shared Business Services Ltd,20/06/2022,Other Staff Benefits,People,Amazon EU SARL,99755139,125,ZZ-Employee Benefits,EC2A 2FA
"Department for Business, Innovation and Skills",UK Shared Business Services Ltd,20/06/2022,Staff Training,HRSD Recoverables,ASK Europe PLC,99755720,840,Training,MK43 0BT
"Department for Business, Innovation and Skills",UK Shared Business Services Ltd,20/06/2022,Contract Staff,Production Services,Alexander Mann Solutions Ltd,99755758,"4,237.63",Recruitment Services,EC2N 3AQ
"Department for Business, Innovation and Skills",UK Shared Business Services Ltd,20/06/2022,Contract Staff,Project Office,Alexander Mann Solutions Ltd,99755763,"3,649.14",Recruitment Services,EC2N 3AQ
"Department for Business, Innovation and Skills",UK Shared Business Services Ltd,20/06/2022,Contract Staff,SHARP,Alexander Mann Solutions Ltd,99755771,"7,114.09",Recruitment Services,EC2N 3AQ
"Department for Business, Innovation and Skills",UK Shared Business Services Ltd,20/06/2022,Contract Staff,Production Services,Alexander Mann Solutions Ltd,99755775,"4,927.39",Recruitment Services,EC2N 3AQ
"Department for Business, Innovation and Skills",UK Shared Business Services Ltd,20/06/2022,Consultancy Services,"Risk, Information & Security Compliance",Risk Evolves Ltd,99755939,"5,160.00",Consultancy Services,CV31 1XT
"Department for Business, Innovation and Skills",UK Shared Business Services Ltd,20/06/2022,T&S - Subsistence,"D&I Digital, Data & Analytics",Unspecified,99756035,18.75,Evening Meal (Actuals),HOME
"Department for Business, Innovation and Skills",UK Shared Business Services Ltd,20/06/2022,T&S - Subsistence,"D&I Digital, Data & Analytics",Unspecified,99756035,11.8,Lunch (Actuals),HOME
"Department for Business, Innovation and Skills",UK Shared Business Services Ltd,20/06/2022,T&S - Accommodation,"Risk, Information & Security Compliance",Unspecified,99756036,240,Accommodation - Hotels Elsewhere Actuals,HOME
"Department for Business, Innovation and Skills",UK Shared Business Services Ltd,20/06/2022,T&S - Other Charges,"Risk, Information & Security Compliance",Unspecified,99756036,14.99,Home-working Equipment,HOME
"Department for Business, Innovation and Skills",UK Shared Business Services Ltd,20/06/2022,T&S - Vehicle Hire,"Risk, Information & Security Compliance",Unspecified,99756036,100.8,Vehicle Hire/Rental/Fuel (Actuals),HOME
"Department for Business, Innovation and Skills",UK Shared Business Services Ltd,20/06/2022,UK - Professional Memberships & Subscriptions,"Risk, Information & Security Compliance",Unspecified,99756036,50,Professional Subscriptions (Actuals),HOME
"Department for Business, Innovation and Skills",UK Shared Business Services Ltd,21/06/2022,Consultancy Services,Production Services,KTSL Ltd,99747942,"2,340.00",Computer Consumables,SN13 0ZQ
"Department for Business, Innovation and Skills",UK Shared Business Services Ltd,21/06/2022,Staff Training,HRSD Recoverables,ASK Europe PLC,99755235,840,Training,MK43 0BT
"Department for Business, Innovation and Skills",UK Shared Business Services Ltd,21/06/2022,Consultancy Services,"Risk, Information & Security Compliance",Risk Evolves Ltd,99756295,"2,040.00",Consultancy Services,CV31 1XT
"Department for Business, Innovation and Skills",UK Shared Business Services Ltd,21/06/2022,T&S - Mileage,D&I Infrastructure & Network Services,Unspecified,99756549,34.2,Mileage - Car (excl Home to Office),HOME
"Department for Business, Innovation and Skills",UK Shared Business Services Ltd,21/06/2022,T&S - Subsistence,Executive Function,Unspecified,99756550,90,Lunch (Actuals),HOME
"Department for Business, Innovation and Skills",UK Shared Business Services Ltd,21/06/2022,T&S - Subsistence,Operational Excellence,Unspecified,99756551,4.37,Breakfast (Actuals),HOME
"Department for Business, Innovation and Skills",UK Shared Business Services Ltd,21/06/2022,T&S - Subsistence,Operational Excellence,Unspecified,99756551,16.45,Evening Meal (Actuals),HOME
"Department for Business, Innovation and Skills",UK Shared Business Services Ltd,21/06/2022,T&S - Subsistence,Operational Excellence,Unspecified,99756551,14.06,Lunch (Actuals),HOME
"Department for Business, Innovation and Skills",UK Shared Business Services Ltd,21/06/2022,T&S - Mileage,Executive Function,Unspecified,99756552,56.7,Mileage - Car (excl Home to Office),HOME
"Department for Business, Innovation and Skills",UK Shared Business Services Ltd,21/06/2022,T&S - Subsistence,Operational Excellence,Unspecified,99756553,17.45,Evening Meal (Actuals),HOME
"Department for Business, Innovation and Skills",UK Shared Business Services Ltd,21/06/2022,T&S - Subsistence,Operational Excellence,Unspecified,99756553,25.87,Lunch (Actuals),HOME
"Department for Business, Innovation and Skills",UK Shared Business Services Ltd,21/06/2022,T&S - Vehicle Hire,Operational Excellence,Unspecified,99756553,50,Vehicle Hire/Rental/Fuel (Actuals),HOME
"Department for Business, Innovation and Skills",UK Shared Business Services Ltd,21/06/2022,T&S - Public Transport,Tier 1 ROE Transactions,Unspecified,99756554,63.29,Public Transport - Train (Actuals),HOME
"Department for Business, Innovation and Skills",UK Shared Business Services Ltd,22/06/2022,Computer Software Licences,Production Services,Phoenix Software Ltd,99755240,"9,004.51",Computer Consumables,YO42 1NS
"Department for Business, Innovation and Skills",UK Shared Business Services Ltd,22/06/2022,T&S - Vehicle Hire,HR Ops,Enterprise Rent-A-Car UK Ltd,99756578,61.58, 13/6/22-15/6/22,GL2 5DA
"Department for Business, Innovation and Skills",UK Shared Business Services Ltd,22/06/2022,T&S - Vehicle Hire,HR Ops,Enterprise Rent-A-Car UK Ltd,99756578,12.32,SR11154996/SR11154988 MONTHLY CAR RENTAL,GL2 5DA
"Department for Business, Innovation and Skills",UK Shared Business Services Ltd,22/06/2022,Computer Software Licences,ERP Support,Science Warehouse Ltd,99756679,"178,804.70",Computing Software,SL3 9LL
"Department for Business, Innovation and Skills",UK Shared Business Services Ltd,22/06/2022,Computer Hardware,Network Improvements,CDW Ltd,99756729,"12,898.54",Computer Consumables,SWAREHOUSEONLY
"Department for Business, Innovation and Skills",UK Shared Business Services Ltd,22/06/2022,Computer Hardware,Network Improvements,CDW Ltd,99756729,"17,353.70",Computer Consumables,SWAREHOUSEONLY
"Department for Business, Innovation and Skills",UK Shared Business Services Ltd,22/06/2022,Computer Hardware,Network Improvements,CDW Ltd,99756729,631.94,Computer Consumables,SWAREHOUSEONLY
"Department for Business, Innovation and Skills",UK Shared Business Services Ltd,22/06/2022,Computer Hardware,Network Improvements,CDW Ltd,99756729,"8,203.56",Computer Consumables,SWAREHOUSEONLY
"Department for Business, Innovation and Skills",UK Shared Business Services Ltd,22/06/2022,Computer Hardware,Network Improvements,CDW Ltd,99756729,"1,382.02",Computer Consumables,SWAREHOUSEONLY
"Department for Business, Innovation and Skills",UK Shared Business Services Ltd,22/06/2022,Computer Hardware,Network Improvements,CDW Ltd,99756729,"28,882.85",Computer Consumables,SWAREHOUSEONLY
"Department for Business, Innovation and Skills",UK Shared Business Services Ltd,22/06/2022,Legal & Professional Services,Finance Operations 2,Legal Recoveries and Collections Ltd,99756751,30,Professional Services,NG1 3BF
"Department for Business, Innovation and Skills",UK Shared Business Services Ltd,22/06/2022,Computing Consumables,Production Services,CDW Ltd,99756755,"1,327.36",Computer Consumables,SWAREHOUSEONLY
"Department for Business, Innovation and Skills",UK Shared Business Services Ltd,22/06/2022,T&S - Mileage,Professional Services,Unspecified,99757715,56.7,Mileage - Car (excl Home to Office),HOME
"Department for Business, Innovation and Skills",UK Shared Business Services Ltd,22/06/2022,T&S - Parking Tolls Congestion Charges,Operational Excellence,Unspecified,99757716,6,"Parking, Tolls, Congestion Charge",HOME
"Department for Business, Innovation and Skills",UK Shared Business Services Ltd,22/06/2022,T&S - Subsistence,Operational Excellence,Unspecified,99757716,18.95,Evening Meal (Actuals),HOME
"Department for Business, Innovation and Skills",UK Shared Business Services Ltd,22/06/2022,T&S - Subsistence,Operational Excellence,Unspecified,99757716,20.77,Lunch (Actuals),HOME
"Department for Business, Innovation and Skills",UK Shared Business Services Ltd,22/06/2022,T&S - Vehicle Hire,Operational Excellence,Unspecified,99757716,70,Vehicle Hire/Rental/Fuel (Actuals),HOME
"Department for Business, Innovation and Skills",UK Shared Business Services Ltd,22/06/2022,T&S - Subsistence,Operational Assurance,Unspecified,99757718,7.5,Breakfast (Actuals),HOME
"Department for Business, Innovation and Skills",UK Shared Business Services Ltd,22/06/2022,T&S - Subsistence,Operational Assurance,Unspecified,99757718,17.95,Evening Meal (Actuals),HOME
"Department for Business, Innovation and Skills",UK Shared Business Services Ltd,22/06/2022,T&S - Subsistence,Operational Assurance,Unspecified,99757718,12.72,Lunch (Actuals),HOME
"Department for Business, Innovation and Skills",UK Shared Business Services Ltd,22/06/2022,Health & Safety (inc. Medicals & Opticians),Tier 1 ROE Transactions,Unspecified,99757719,80,Medical Fees & Vaccinations (Actuals),HOME
"Department for Business, Innovation and Skills",UK Shared Business Services Ltd,23/06/2022,Contract Staff,Project Office,Alexander Mann Solutions Ltd,99692722,"2,919.31",Recruitment Services,EC2N 3AQ
"Department for Business, Innovation and Skills",UK Shared Business Services Ltd,23/06/2022,Contract Staff,Corporate HR,Alexander Mann Solutions Ltd,99692749,"3,024.29",Recruitment Services,EC2N 3AQ
"Department for Business, Innovation and Skills",UK Shared Business Services Ltd,23/06/2022,Contract Staff,Project Office,Alexander Mann Solutions Ltd,99732724,"3,649.14",Recruitment Services,EC2N 3AQ
"Department for Business, Innovation and Skills",UK Shared Business Services Ltd,23/06/2022,Consultancy Services,Interfaces & API Mgmt,Software AG (UK) Ltd,99744044,"14,297.42",Computer Consumables,DE24 8BY
"Department for Business, Innovation and Skills",UK Shared Business Services Ltd,23/06/2022,Staff Training,HRSD Recoverables,ASK Europe PLC,99756972,840,Training,MK43 0BT
"Department for Business, Innovation and Skills",UK Shared Business Services Ltd,23/06/2022,Staff Training,HRSD Recoverables,ASK Europe PLC,99757196,840,Training,MK43 0BT
"Department for Business, Innovation and Skills",UK Shared Business Services Ltd,23/06/2022,T&S - Parking Tolls Congestion Charges,Corporate Finance,Unspecified,99757234,10,"Parking, Tolls, Congestion Charge",HOME
"Department for Business, Innovation and Skills",UK Shared Business Services Ltd,23/06/2022,T&S - Mileage,Operational Excellence,Unspecified,99757236,250.3,Mileage - Car (excl Home to Office),HOME
"Department for Business, Innovation and Skills",UK Shared Business Services Ltd,23/06/2022,T&S - Public Transport,Operational Excellence,Unspecified,99757236,5,Public Transport - Taxi Fare (Actuals),HOME
"Department for Business, Innovation and Skills",UK Shared Business Services Ltd,23/06/2022,T&S - Subsistence,Operational Excellence,Unspecified,99757236,25,Evening Meal (Actuals),HOME
"Department for Business, Innovation and Skills",UK Shared Business Services Ltd,23/06/2022,T&S - Subsistence,Operational Excellence,Unspecified,99757236,12.69,Lunch (Actuals),HOME
"Department for Business, Innovation and Skills",UK Shared Business Services Ltd,23/06/2022,Computer Software Licences,SIAM,Phoenix Software Ltd,99757848,"1,013.88",Computing Software,YO42 1NS
"Department for Business, Innovation and Skills",UK Shared Business Services Ltd,23/06/2022,Staff Training,HRSD Recoverables,ASK Europe PLC,99757872,840,Training,MK43 0BT
"Department for Business, Innovation and Skills",UK Shared Business Services Ltd,23/06/2022,Staff Training,HRSD Recoverables,ASK Europe PLC,99757875,840,Training,MK43 0BT
"Department for Business, Innovation and Skills",UK Shared Business Services Ltd,23/06/2022,Staff Training,HRSD Recoverables,ASK Europe PLC,99757876,840,Training,MK43 0BT
"Department for Business, Innovation and Skills",UK Shared Business Services Ltd,24/06/2022,Printing & Stationery,Production Services,Konica Minolta Business Solutions (UK) Ltd,99753507,"1,263.18",Computing Hardware,SS14 3AR
"Department for Business, Innovation and Skills",UK Shared Business Services Ltd,24/06/2022,Recruitment Costs,Corporate HR,Agenda Resource Management Ltd,99757088,148.91,Professional Services,HU12 8YJ
"Department for Business, Innovation and Skills",UK Shared Business Services Ltd,24/06/2022,IT / Computing Support Services,Production Services,Trustco Plc,99757457,"13,133.95",NetApp Active Support Year 2 of 2. 01/06/2022 - 31/05/2023,BN3 4QT
"Department for Business, Innovation and Skills",UK Shared Business Services Ltd,24/06/2022,T&S - Mileage,D&I Operations,Unspecified,99757644,44.1,Mileage - Car (excl Home to Office),HOME
"Department for Business, Innovation and Skills",UK Shared Business Services Ltd,27/06/2022,GPC Clearing - SSC,Balance Sheet,Unspecified,99757233,-300,Unspecified,HOME
"Department for Business, Innovation and Skills",UK Shared Business Services Ltd,27/06/2022,T&S - Accommodation,Accounting,Unspecified,99757233,300,GPC T&S UK Accomm - Hotels Elsewhere,HOME
"Department for Business, Innovation and Skills",UK Shared Business Services Ltd,27/06/2022,GPC Clearing - SSC,Balance Sheet,Unspecified,99757235,"-1,053.73",Unspecified,HOME
"Department for Business, Innovation and Skills",UK Shared Business Services Ltd,27/06/2022,Health & Safety (inc. Medicals & Opticians),Facilities,Unspecified,99757235,"1,053.73",GPC_Health & Safety,HOME
"Department for Business, Innovation and Skills",UK Shared Business Services Ltd,27/06/2022,Computer Software Licences,Production Services,Real Asset Management Ltd,99757507,"27,002.54",Annual Renewal Technical Support starting 20th June - Series4000 20th of June 2022  19th June 2023,EC2V 8EA
"Department for Business, Innovation and Skills",UK Shared Business Services Ltd,27/06/2022,Advertising & Promotion,Executive Function,Unspecified,99757645,95.54,GPC_Advertising & Promotion,HOME
"Department for Business, Innovation and Skills",UK Shared Business Services Ltd,27/06/2022,GPC Clearing - SSC,Balance Sheet,Unspecified,99757645,-95.54,Unspecified,HOME
"Department for Business, Innovation and Skills",UK Shared Business Services Ltd,27/06/2022,GPC Clearing - SSC,Balance Sheet,Unspecified,99757717,-136.19,Unspecified,HOME
"Department for Business, Innovation and Skills",UK Shared Business Services Ltd,27/06/2022,Health & Safety (inc. Medicals & Opticians),"Risk, Information & Security Compliance",Unspecified,99757717,136.19,GPC_Health & Safety,HOME
"Department for Business, Innovation and Skills",UK Shared Business Services Ltd,27/06/2022,Computing Consumables,SIAM,Dell Corporation Ltd,99758669,"1,438.80",Computer Consumables,SWAREHOUSEONLY
"Department for Business, Innovation and Skills",UK Shared Business Services Ltd,27/06/2022,T&S - Public Transport,Corporate Finance,Unspecified,99758707,8,Public Transport - Taxi Fare (Actuals),HOME
"Department for Business, Innovation and Skills",UK Shared Business Services Ltd,27/06/2022,UK - Professional Memberships & Subscriptions,People,Unspecified,99758708,168,Professional Subscriptions (Actuals),HOME
"Department for Business, Innovation and Skills",UK Shared Business Services Ltd,27/06/2022,Contract Staff,SHARP,Alexander Mann Solutions Ltd,99758743,"3,387.66",Recruitment Services,EC2N 3AQ
"Department for Business, Innovation and Skills",UK Shared Business Services Ltd,27/06/2022,Contract Staff,Corporate HR,Alexander Mann Solutions Ltd,99758759,"3,780.36",Recruitment Services,EC2N 3AQ
"Department for Business, Innovation and Skills",UK Shared Business Services Ltd,27/06/2022,Contract Staff,Project Office,Alexander Mann Solutions Ltd,99758762,"3,649.14",Recruitment Services,EC2N 3AQ
"Department for Business, Innovation and Skills",UK Shared Business Services Ltd,27/06/2022,Contract Staff,Corporate Commercial,Alexander Mann Solutions Ltd,99758795,"6,303.12",Recruitment Services,EC2N 3AQ
"Department for Business, Innovation and Skills",UK Shared Business Services Ltd,28/06/2022,Health & Safety (inc. Medicals & Opticians),Facilities,Posturite Ltd,98459986,19.95,Professional Services,BN26 6SZ
"Department for Business, Innovation and Skills",UK Shared Business Services Ltd,28/06/2022,Health & Safety (inc. Medicals & Opticians),Facilities,Posturite Ltd,98459986,125.95,Professional Services,BN26 6SZ
"Department for Business, Innovation and Skills",UK Shared Business Services Ltd,28/06/2022,Health & Safety (inc. Medicals & Opticians),Facilities,Posturite Ltd,98459986,34.95,Professional Services,BN26 6SZ
"Department for Business, Innovation and Skills",UK Shared Business Services Ltd,28/06/2022,Health & Safety (inc. Medicals & Opticians),Facilities,Posturite Ltd,98459986,159.95,Professional Services,BN26 6SZ
"Department for Business, Innovation and Skills",UK Shared Business Services Ltd,28/06/2022,Computer Hardware,Production Services,Dell Corporation Ltd,99249487,43.42,Computing Hardware,SWAREHOUSEONLY
"Department for Business, Innovation and Skills",UK Shared Business Services Ltd,28/06/2022,Consultancy Services,Systems Developments,Bytes Software Services Ltd,99714716,"9,240.00",Computer Consumables,KT22 7TW
"Department for Business, Innovation and Skills",UK Shared Business Services Ltd,28/06/2022,Agency Staff,Corporate Finance,C and D Group Ltd t/a Thrive Group,99754112,935.29,Recruitment Services,SN3 4UQ
"Department for Business, Innovation and Skills",UK Shared Business Services Ltd,28/06/2022,Contract Staff,People,Alexander Mann Solutions Ltd,99755761,"3,848.22",Recruitment Services,EC2N 3AQ
"Department for Business, Innovation and Skills",UK Shared Business Services Ltd,28/06/2022,Contract Staff,Production Services,Alexander Mann Solutions Ltd,99758755,"2,648.52",Recruitment Services,EC2N 3AQ
"Department for Business, Innovation and Skills",UK Shared Business Services Ltd,28/06/2022,Staff Training,HRSD Recoverables,ASK Europe PLC,99759030,840,Training,MK43 0BT
"Department for Business, Innovation and Skills",UK Shared Business Services Ltd,28/06/2022,T&S - Vehicle Hire,Finance Services,Enterprise Rent-A-Car UK Ltd,99759155,73.64,,GL2 5DA
"Department for Business, Innovation and Skills",UK Shared Business Services Ltd,28/06/2022,T&S - Vehicle Hire,Finance Services,Enterprise Rent-A-Car UK Ltd,99759155,14.73,SR 11165682 CAR HIRE,GL2 5DA
"Department for Business, Innovation and Skills",UK Shared Business Services Ltd,28/06/2022,T&S - Vehicle Hire,Operational Excellence,Enterprise Rent-A-Car UK Ltd,99759155,17.32,SR 11165682 CAR HIRE,GL2 5DA
"Department for Business, Innovation and Skills",UK Shared Business Services Ltd,28/06/2022,T&S - Vehicle Hire,Operational Excellence,Enterprise Rent-A-Car UK Ltd,99759155,86.58,,GL2 5DA
"Department for Business, Innovation and Skills",UK Shared Business Services Ltd,28/06/2022,T&S - Mileage,Accounting,Unspecified,99760127,56.7,Mileage - Car (excl Home to Office),HOME
"Department for Business, Innovation and Skills",UK Shared Business Services Ltd,28/06/2022,T&S - Parking Tolls Congestion Charges,Accounting,Unspecified,99760127,4,"Parking, Tolls, Congestion Charge",HOME
"Department for Business, Innovation and Skills",UK Shared Business Services Ltd,28/06/2022,T&S - Subsistence,Accounting,Unspecified,99760127,30.3,Evening Meal (Actuals),HOME
"Department for Business, Innovation and Skills",UK Shared Business Services Ltd,28/06/2022,T&S - Mileage,Contact Centres,Unspecified,99760128,14.2,Mileage - Bicycle (excl Home to Office),HOME
"Department for Business, Innovation and Skills",UK Shared Business Services Ltd,28/06/2022,T&S - Mileage,Contact Centres,Unspecified,99760128,30.15,Mileage - Car (excl Home to Office),HOME
"Department for Business, Innovation and Skills",UK Shared Business Services Ltd,28/06/2022,T&S - Subsistence,Contact Centres,Unspecified,99760128,17.98,Evening Meal (Actuals),HOME
"Department for Business, Innovation and Skills",UK Shared Business Services Ltd,28/06/2022,T&S - Accommodation,Category and Continuous Improvement,Unspecified,99760129,53.1,Accommodation - Hotels Elsewhere Actuals,HOME
"Department for Business, Innovation and Skills",UK Shared Business Services Ltd,28/06/2022,T&S - Mileage,D&I Infrastructure & Network Services,Unspecified,99760130,67.5,Mileage - Car (excl Home to Office),HOME
"Department for Business, Innovation and Skills",UK Shared Business Services Ltd,28/06/2022,T&S - Mileage,D&I Operations,Unspecified,99760131,62.1,Mileage - Car (excl Home to Office),HOME
"Department for Business, Innovation and Skills",UK Shared Business Services Ltd,28/06/2022,T&S - Public Transport,"D&I Digital, Data & Analytics",Unspecified,99760132,15,Public Transport - Taxi Fare (Actuals),HOME
"Department for Business, Innovation and Skills",UK Shared Business Services Ltd,28/06/2022,T&S - Subsistence,"D&I Digital, Data & Analytics",Unspecified,99760132,40.19,Evening Meal (Actuals),HOME
"Department for Business, Innovation and Skills",UK Shared Business Services Ltd,28/06/2022,T&S - Subsistence,"D&I Digital, Data & Analytics",Unspecified,99760132,12.97,Lunch (Actuals),HOME
"Department for Business, Innovation and Skills",UK Shared Business Services Ltd,28/06/2022,T&S - Parking Tolls Congestion Charges,Operational Excellence,Unspecified,99760134,10,"Parking, Tolls, Congestion Charge",HOME
"Department for Business, Innovation and Skills",UK Shared Business Services Ltd,29/06/2022,Computer Software Licences,Production Services,Softcat plc,99703716,"11,040.00",Computing Software,SL7 1LW
"Department for Business, Innovation and Skills",UK Shared Business Services Ltd,29/06/2022,Computer Software Licences,Production Services,Softcat plc,99703716,"8,208.00",Computing Software,SL7 1LW
"Department for Business, Innovation and Skills",UK Shared Business Services Ltd,29/06/2022,Computer Software Licences,Production Services,Softcat plc,99745281,"6,684.00",Computing Software,SL7 1LW
"Department for Business, Innovation and Skills",UK Shared Business Services Ltd,29/06/2022,Recruitment Costs,People,Onefix Recruitment Ltd,99757957,838.8,Recruitment Services,PO3 5EJ
"Department for Business, Innovation and Skills",UK Shared Business Services Ltd,29/06/2022,Recruitment Costs,People,Onefix Recruitment Ltd,99757958,360,Recruitment Services,PO3 5EJ
"Department for Business, Innovation and Skills",UK Shared Business Services Ltd,29/06/2022,Recruitment Costs,People,Onefix Recruitment Ltd,99757960,360,Recruitment Services,PO3 5EJ
"Department for Business, Innovation and Skills",UK Shared Business Services Ltd,29/06/2022,Recruitment Costs,People,Onefix Recruitment Ltd,99757961,360,Recruitment Services,PO3 5EJ
"Department for Business, Innovation and Skills",UK Shared Business Services Ltd,29/06/2022,Recruitment Costs,People,Onefix Recruitment Ltd,99757962,778.8,Recruitment Services,PO3 5EJ
"Department for Business, Innovation and Skills",UK Shared Business Services Ltd,29/06/2022,Computing Consumables,Production Services,Probrand Ltd,99758264,405.72,Computer Consumables,SMARTFORM
"Department for Business, Innovation and Skills",UK Shared Business Services Ltd,29/06/2022,Staff Training,HRSD Recoverables,ASK Europe PLC,99759028,840,Training,MK43 0BT
"Department for Business, Innovation and Skills",UK Shared Business Services Ltd,29/06/2022,Computer Software Licences,ERP Support,Oracle Corporation UK Ltd,99759407,0.01,PO 4080023756 Overbilled 0.01p Within Agreed Tolerance,RG6 1RA
"Department for Business, Innovation and Skills",UK Shared Business Services Ltd,29/06/2022,Computer Software Licences,ERP Support,Oracle Corporation UK Ltd,99759407,"147,897.01",Software as a Service subscription - Mar 22 - May 22,RG6 1RA
"Department for Business, Innovation and Skills",UK Shared Business Services Ltd,29/06/2022,T&S - Other Charges,Accounting,Unspecified,99759470,80,Miscellaneous (Actuals),HOME
"Department for Business, Innovation and Skills",UK Shared Business Services Ltd,29/06/2022,T&S - Mileage,Contact Centres,Unspecified,99759471,68.4,Mileage - Car (excl Home to Office),HOME
"Department for Business, Innovation and Skills",UK Shared Business Services Ltd,29/06/2022,T&S - Public Transport,Tier 1 BOE Transactions,Unspecified,99759472,22.9,Public Transport - Train (Actuals),HOME
"Department for Business, Innovation and Skills",UK Shared Business Services Ltd,30/06/2022,IT Cloud Services,Production Services,FlyForm Ltd,99759660,"4,999.20",Computing Software,CF10 3AG
"Department for Business, Innovation and Skills",UK Shared Business Services Ltd,30/06/2022,Computing Consumables,Production Services,Banner Group Ltd,99760704,"1,285.15",Computer Consumables,SWAREHOUSEONLY
"Department for Business, Innovation and Skills",UK Shared Business Services Ltd,30/06/2022,Computing Consumables,Production Services,Banner Group Ltd,99760766,"1,869.31",Computer Consumables,SWAREHOUSEONLY
"Department for Business, Innovation and Skills",UK Shared Business Services Ltd,30/06/2022,Staff Training,HRSD Recoverables,Feldman Ltd T/A Brian Feldman and Associates,99760775,780,Training,SW15 5RH
"Department for Business, Innovation and Skills",UK Shared Business Services Ltd,30/06/2022,Health & Safety (inc. Medicals & Opticians),Executive Function,Unspecified,99761741,80,Medical Fees & Vaccinations (Actuals),HOME
"Department for Business, Innovation and Skills",UK Shared Business Services Ltd,30/06/2022,T&S - Subsistence,Finance Operations 1,Unspecified,99761742,19.7,Evening Meal (Actuals),HOME
"Department for Business, Innovation and Skills",UK Shared Business Services Ltd,30/06/2022,T&S - Vehicle Hire,Finance Operations 1,Unspecified,99761742,83.42,Vehicle Hire/Rental/Fuel (Actuals),HOME
"Department for Business, Innovation and Skills",UK Shared Business Services Ltd,28/06/2022,Bank Charges,Corporate Finance,,,894,Bank Charges,
"Department for Business, Innovation and Skills",UK Shared Business Services Ltd,30/06/2022,Bank Charges,Corporate Finance,,,25.05,Bank Charges,
"Department for Business, Innovation and Skills",UK Shared Business Services Ltd,30/06/2022,Bank Charges,Corporate Finance,,,200,Bank Charges,
